bitfinex/quotes_SOLUSD_20250228
["timestamp","ask_amount","ask_price","bid_price","bid_amount"]
[1740727454867,39.84667193,129.14,129.07,100.24964886]
[1740727455076,22.47870424,129.14,129.08,0.14216157]
[1740727455375,6.41459307,129.14,129.09,18.64964886]
[1740727455569,0.00489307,129.14,129.09,18.64964886]
[1740727455775,0.00489307,129.14,129.1,17.3659]
[1740727455971,0.00489307,129.14,129.1,9.62]
[1740727456150,0.00489307,129.14,129.11,18.64964886]
[1740727456351,0.00489307,129.14,129.13,20.0]
[1740727457273,0.00489307,129.14,129.13,256.89181043]
[1740727457657,0.00489307,129.14,129.13,266.63591043]
[1740727457856,0.00489307,129.14,129.13,264.63591043]
[1740727458173,0.00489307,129.14,129.13,256.89181043]
[1740727458555,0.00489307,129.14,129.13,256.74964886]
[1740727458870,0.00489307,129.14,129.1,227.72]
[1740727459071,0.00489307,129.14,129.1,91.22]
[1740727460962,0.00489307,129.14,129.1,9.62]
[1740727461160,6.5995,129.13,129.1,9.62]
[1740727461356,6.5995,129.13,129.08,81.63]
[1740727461962,6.5995,129.13,129.08,89.377]
[1740727462164,6.5995,129.13,129.08,81.63]
[1740727462881,14.3437,129.13,129.08,81.63]
[1740727463258,14.3437,129.13,129.08,0.03]
[1740727463458,82.8,129.12,129.08,0.03]
[1740727463957,7.7453,129.11,129.08,0.03]
[1740727464156,90.5453,129.11,129.08,0.03]
[1740727464355,2.6619,129.09,129.08,0.03]
[1740727465572,0.14216157,129.08,129.03,0.03]
[1740727465769,82.94216157,129.08,129.03,0.03]
[1740727465974,7.7477,129.07,129.03,0.03]
[1740727469280,94.36425635,129.08,129.03,0.03]
[1740727469477,82.8,129.07,129.03,0.03]
[1740727470688,7.7483,129.06,129.03,0.03]
[1740727471262,90.5483,129.06,129.03,0.03]
[1740727473265,20.0,128.97,128.96,0.03]
[1740727473562,9.62,128.97,128.9,0.03]
[1740727473781,88.9777,129.0,128.9,0.03]
[1740727474004,6.1777,129.0,128.91,136.53]
[1740727474267,6.1777,129.0,128.92,28.24964886]
[1740727474468,20.0,128.97,128.92,9.6]
[1740727478182,20.0,128.97,128.92,91.2]
[1740727480276,27.7539,128.97,128.92,91.2]
[1740727481591,27.7539,128.97,128.92,81.6]
[1740727482601,0.14216157,128.96,128.91,0.03]
[1740727483089,47.1382,128.97,128.91,0.03]
[1740727483090,129.9382,128.97,128.91,0.03]
[1740727484570,7.7549,128.95,128.91,0.03]
[1740727485099,7.55031688,128.95,128.91,0.03]
[1740727486000,26.93761688,128.95,128.91,0.03]
[1740727486177,3.80311453,128.94,128.91,0.03]
[1740727486875,6.6104,128.93,128.91,0.03]
[1740727488073,7.7567,128.92,128.91,0.03]
[1740727488702,7.7567,128.92,128.9,0.03]
[1740727489018,7.7567,128.92,128.9,0.0001]
[1740727491592,20.0,128.89,128.87,0.03]
[1740727491908,20.0,128.88,128.87,0.0001]
[1740727492597,0.14216157,128.88,128.87,0.0001]
[1740727493002,6.21946157,128.88,128.87,0.0001]
[1740727493193,6.0773,128.88,128.87,0.0001]
[1740727493383,13.97856157,128.88,128.87,0.0001]
[1740727493589,96.77856157,128.88,128.87,0.0001]
[1740727493787,115.42821043,128.88,128.87,0.0001]
[1740727493988,35.16191043,128.88,128.87,0.0001]
[1740727494718,20.0,128.84,128.79,0.03]
[1740727495005,82.8,128.85,128.79,0.03]
[1740727495308,27.1654,128.84,128.79,0.03]
[1740727495806,3.89346981,128.83,128.79,0.03]
[1740727497204,47.1696,128.82,128.79,0.03]
[1740727500716,27.1696,128.82,128.79,0.03]
[1740727501211,20.0,128.79,128.74,91.2]
[1740727503125,27.7646,128.79,128.74,91.2]
[1740727503427,27.7646,128.79,128.74,81.6]
[1740727505107,20.0,128.79,128.74,81.6]
[1740727506013,3.89346981,128.83,128.75,18.64964886]
[1740727506209,11.65566981,128.83,128.75,236.74964886]
[1740727506416,0.14216157,128.82,128.75,218.1]
[1740727507118,11.65566981,128.83,128.75,225.8669]
[1740727507715,14.2055,128.85,128.76,18.64964886]
[1740727508017,28.1845,128.88,128.78,18.64964886]
[1740727508220,7.7597,128.87,128.78,243.04994886]
[1740727508522,0.063,128.82,128.78,243.04994886]
[1740727509020,0.063,128.82,128.81,18.64964886]
[1740727509225,0.063,128.82,128.81,236.89181043]
[1740727510130,0.063,128.82,128.81,218.1]
[1740727510426,0.02419781,128.82,128.81,236.74964886]
[1740727511111,0.02419781,128.82,128.81,244.65511043]
[1740727511306,0.02419781,128.82,128.81,218.1]
[1740727512522,0.02419781,128.82,128.81,81.6]
[1740727513033,0.02419781,128.82,128.77,81.6]
[1740727516533,82.96635938,128.82,128.76,9.6]
[1740727516921,82.96635938,128.82,128.75,81.6]
[1740727517630,7.7633,128.81,128.75,81.6]
[1740727518430,7.7633,128.81,128.75,89.3669]
[1740727518638,7.7633,128.81,128.75,81.6]
[1740727520233,7.7633,128.81,128.75,89.3668]
[1740727521122,7.7633,128.81,128.75,218.13]
[1740727521537,27.1717,128.81,128.75,218.13]
[1740727521734,20.0,128.78,128.75,81.63]
[1740727523317,7.7657,128.77,128.75,81.63]
[1740727524325,20.0,128.77,128.75,81.63]
[1740727525237,7.7663,128.76,128.75,81.63]
[1740727525540,7.7663,128.76,128.75,0.03]
[1740727526936,20.0,128.73,128.68,218.1]
[1740727527127,82.8,128.75,128.68,81.6]
[1740727527326,20.0,128.72,128.68,81.6]
[1740727527637,20.0,128.71,128.68,81.6]
[1740727528733,7.77,128.7,128.68,81.6]
[1740727528929,7.77,128.7,128.66,81.6]
[1740727529142,7.77,128.7,128.64,81.6]
[1740727530136,26.2944,128.71,128.64,81.6]
[1740727530317,34.064,128.71,128.65,18.64964886]
[1740727530523,20.0,128.71,128.65,17.64964886]
[1740727530719,27.7694,128.71,128.65,17.64964886]
[1740727530923,27.7694,128.71,128.64,81.6]
[1740727531737,47.1929,128.71,128.64,81.6]
[1740727532241,18.79181043,128.7,128.62,0.03]
[1740727532450,82.94216157,128.7,128.62,89.4046]
[1740727532852,7.7706,128.69,128.63,0.03]
[1740727533021,20.0,128.66,128.63,0.03]
[1740727533939,6.3265,128.68,128.63,0.03]
[1740727534247,16.5335,128.71,128.63,236.77964886]
[1740727534441,16.5335,128.71,128.63,246.35964886]
[1740727534935,6.181,128.71,128.65,18.64964886]
[1740727535119,82.8,128.72,128.65,18.64964886]
[1740727535819,3.94863166,128.73,128.65,236.74964886]
[1740727536015,13.9475,128.74,128.65,236.74964886]
[1740727536238,18.79181043,128.72,128.65,81.6]
[1740727536448,0.14216157,128.72,128.65,81.6]
[1740727536645,20.0,128.7,128.65,81.6]
[1740727536853,6.1448,128.67,128.63,81.63]
[1740727537044,13.9166,128.67,128.63,81.63]
[1740727537919,13.9166,128.67,128.63,0.03]
[1740727538433,33.3461,128.67,128.63,0.03]
[1740727540446,17.72264802,128.67,128.63,0.03]
[1740727542127,37.15214802,128.67,128.63,0.03]
[1740727545137,17.72264802,128.67,128.63,0.03]
[1740727545529,7.7706,128.69,128.63,0.03]
[1740727546245,7.773,128.65,128.63,0.03]
[1740727546847,0.14216157,128.64,128.63,0.03]
[1740727547154,0.14216157,128.64,128.62,0.03]
[1740727547155,20.0,128.63,128.62,0.03]
[1740727547947,97.2354,128.65,128.62,0.03]
[1740727548349,90.573,128.65,128.62,0.03]
[1740727548537,7.773,128.65,128.62,0.03]
[1740727548853,7.7726,128.66,128.62,0.03]
[1740727549645,7.7719,128.67,128.62,0.03]
[1740727549848,7.7719,128.67,128.62,81.63]
[1740727550953,7.7719,128.67,128.62,89.4047]
[1740727551148,3.91134957,128.71,128.63,18.64964886]
[1740727551326,10.49864957,128.71,128.63,236.74964886]
[1740727551654,14.4198,128.71,128.63,236.74964886]
[1740727552535,14.4198,128.71,128.65,18.64964886]
[1740727552737,0.063,128.71,128.65,236.74964886]
[1740727555053,0.063,128.71,128.65,244.52214886]
[1740727555944,0.063,128.71,128.67,18.64964886]
[1740727556142,0.063,128.71,128.69,18.64964886]
[1740727557136,0.063,128.71,128.69,236.74964886]
[1740727557743,0.063,128.71,128.69,81.6]
[1740727560954,0.063,128.71,128.7,18.79181043]
[1740727561153,0.063,128.71,128.7,236.89181043]
[1740727561549,0.063,128.71,128.7,236.74964886]
[1740727562436,0.063,128.71,128.7,218.1]
[1740727563060,0.063,128.71,128.7,81.6]
[1740727564131,0.063,128.71,128.68,81.6]
[1740727565369,0.063,128.71,128.69,18.64964886]
[1740727565570,0.063,128.71,128.68,81.6]
[1740727568272,0.063,128.71,128.7,0.14216157]
[1740727568571,0.063,128.71,128.7,38.84165875]
[1740727569148,0.063,128.71,128.7,40.84165875]
[1740727569574,6.0902,128.8,128.74,20.14216157]
[1740727569878,0.02419781,128.82,128.76,0.14216157]
[1740727569879,7.78709781,128.82,128.76,0.14216157]
[1740727570072,0.02419781,128.82,128.77,18.64964886]
[1740727570246,0.02419781,128.82,128.77,236.74964886]
[1740727570979,0.02419781,128.82,128.77,218.1]
[1740727571149,20.0,128.79,128.75,91.14]
[1740727571470,20.0,128.78,128.75,81.6]
[1740727571773,6.2435,128.77,128.75,81.6]
[1740727571973,6.2435,128.77,128.71,218.1]
[1740727572171,27.1822,128.76,128.71,81.6]
[1740727572846,7.7663,128.76,128.71,81.6]
[1740727573049,90.5658,128.77,128.71,81.6]
[1740727573373,82.8,128.77,128.72,18.64964886]
[1740727574158,14.1074,128.8,128.72,244.51824886]
[1740727574359,14.1074,128.8,128.72,254.05824886]
[1740727574776,14.1074,128.8,128.73,0.14216157]
[1740727574973,0.02419781,128.82,128.75,20.0]
[1740727575148,7.78709781,128.82,128.78,20.0]
[1740727575672,7.78709781,128.82,128.75,236.74964886]
[1740727576473,7.78709781,128.82,128.75,244.51654886]
[1740727576674,7.78709781,128.82,128.75,236.74964886]
[1740727576977,7.78709781,128.82,128.75,244.51654886]
[1740727577359,7.78709781,128.82,128.75,236.74964886]
[1740727577559,27.19399781,128.82,128.75,218.1]
[1740727578563,0.14216157,128.81,128.75,218.1]
[1740727578767,0.14216157,128.81,128.72,9.54]
[1740727578768,20.0,128.77,128.72,91.14]
[1740727578952,20.0,128.77,128.7,81.6]
[1740727580267,7.7663,128.76,128.7,81.6]
[1740727580762,27.1822,128.76,128.7,81.6]
[1740727581063,7.7663,128.76,128.68,225.871]
[1740727581364,90.5663,128.76,128.68,81.6]
[1740727581664,90.5663,128.76,128.68,89.3711]
[1740727581853,90.5663,128.76,128.68,81.6]
[1740727582050,0.14216157,128.7,128.63,0.03]
[1740727582252,6.0612,128.67,128.63,0.03]
[1740727582456,8.5228,128.67,128.63,0.03]
[1740727583651,3.96562911,128.65,128.63,0.03]
[1740727585057,90.5725,128.66,128.63,0.03]
[1740727586050,110.0035,128.66,128.63,0.03]
[1740727586468,86.79933179,128.65,128.63,0.03]
[1740727587354,82.94216157,128.64,128.63,0.03]
[1740727587980,90.71576157,128.64,128.63,0.03]
[1740727588570,82.94216157,128.63,128.62,0.03]
[1740727589361,82.94216157,128.63,128.56,81.6]
[1740727589756,6.1364,128.62,128.56,81.6]
[1740727589956,27.214,128.61,128.56,81.6]
[1740727590184,2.5403,128.6,128.53,81.6]
[1740727591183,27.2182,128.59,128.53,81.6]
[1740727592675,6.0686,128.57,128.51,81.6]
[1740727592858,88.8686,128.57,128.5,81.63]
[1740727593174,20.0,128.54,128.5,0.03]
[1740727593359,7.7802,128.53,128.5,0.03]
[1740727593782,27.2309,128.53,128.5,0.03]
[1740727593970,116.29839113,128.53,128.5,0.03]
[1740727594361,85.2479,128.52,128.5,0.03]
[1740727594679,6.0517,128.51,128.5,0.03]
[1740727595258,13.8331,128.51,128.5,0.03]
[1740727595994,6.0517,128.51,128.5,0.03]
[1740727596203,3.98204892,128.54,128.5,0.03]
[1740727596481,8.5342,128.55,128.5,0.03]
[1740727596870,6.0701,128.55,128.5,0.03]
[1740727597396,9.93933664,128.55,128.5,0.03]
[1740727598382,92.73933664,128.55,128.5,0.03]
[1740727598792,18.79181043,128.54,128.5,0.03]
[1740727598970,0.14216157,128.54,128.5,0.03]
[1740727599360,7.7802,128.53,128.5,0.03]
[1740727600490,0.14216157,128.54,128.5,0.03]
[1740727600793,27.37086157,128.54,128.5,0.03]
[1740727601618,82.8,128.53,128.5,0.03]
[1740727601885,82.8,128.52,128.5,0.03]
[1740727603588,7.7814,128.51,128.5,0.03]
[1740727604183,11.74554753,128.51,128.5,0.03]
[1740727604393,7.7796,128.54,128.5,0.03]
[1740727604687,9.93933664,128.55,128.5,81.63]
[1740727605391,82.8,128.54,128.5,0.03]
[1740727605592,7.7802,128.53,128.5,0.03]
[1740727606207,110.0309,128.53,128.5,0.03]
[1740727607688,90.5802,128.53,128.5,0.03]
[1740727607888,110.0309,128.53,128.5,0.03]
[1740727608102,110.0309,128.53,128.42,28.5529]
[1740727608103,20.0,128.49,128.4,81.6]
[1740727608283,82.8,128.48,128.4,89.3876]
[1740727608675,82.8,128.48,128.4,81.6]
[1740727609081,20.14216157,128.44,128.37,0.03]
[1740727609280,82.8,128.43,128.37,0.03]
[1740727609485,9.52,128.44,128.37,89.4199]
[1740727609800,7.7851,128.45,128.37,81.63]
[1740727610705,27.2479,128.45,128.37,81.63]
[1740727611508,7.7851,128.45,128.37,81.63]
[1740727611813,7.7851,128.45,128.37,89.4198]
[1740727612493,7.7851,128.45,128.37,84.1612]
[1740727612897,110.0479,128.45,128.37,0.03]
[1740727613099,0.14216157,128.44,128.37,0.03]
[1740727613799,7.7863,128.43,128.37,0.03]
[1740727614208,7.7857,128.44,128.37,81.63]
[1740727614508,3.9972878,128.46,128.38,18.64964886]
[1740727614716,7.7834,128.48,128.39,0.14216157]
[1740727614891,3.91102342,128.49,128.45,20.0]
[1740727615081,3.91102342,128.49,128.46,9.52]
[1740727615708,11.69372342,128.49,128.46,9.52]
[1740727616004,7.7827,128.49,128.46,9.52]
[1740727616579,7.7827,128.49,128.42,218.1]
[1740727616884,7.7827,128.49,128.42,91.12]
[1740727617203,7.7827,128.49,128.42,9.52]
[1740727618397,7.7827,128.49,128.42,17.3069]
[1740727618600,94.50507057,128.5,128.42,17.3069]
[1740727618809,86.72287057,128.5,128.42,17.3069]
[1740727618991,7.7809,128.52,128.43,18.64964886]
[1740727619301,7.7803,128.53,128.44,0.14216157]
[1740727619499,14.446,128.54,128.45,18.64964886]
[1740727619702,14.446,128.54,128.45,238.38377335]
[1740727619886,14.446,128.54,128.45,236.74964886]
[1740727620081,14.446,128.54,128.45,81.6]
[1740727620306,7.7802,128.53,128.45,89.3851]
[1740727621717,7.7802,128.53,128.45,81.6]
[1740727622115,27.2309,128.53,128.45,81.6]
[1740727622700,82.94216157,128.52,128.43,349.36]
[1740727623002,82.8,128.52,128.43,349.36]
[1740727623902,11.72492598,128.51,128.43,349.36]
[1740727624314,31.17862598,128.51,128.43,349.36]
[1740727624617,31.17862598,128.51,128.43,357.1462]
[1740727625613,31.17862598,128.51,128.44,0.03]
[1740727626320,20.0,128.47,128.44,0.03]
[1740727626635,20.0,128.46,128.44,0.03]
[1740727627287,6.1583,128.45,128.44,0.03]
[1740727627800,82.8,128.44,128.37,81.63]
[1740727628009,7.7869,128.42,128.37,0.03]
[1740727628224,110.0542,128.42,128.37,0.03]
[1740727628934,7.7869,128.42,128.37,0.03]
[1740727629146,6.1583,128.45,128.37,218.13]
[1740727629435,7.7845,128.46,128.37,220.3768]
[1740727629932,7.7845,128.46,128.38,18.64964886]
[1740727630115,7.7845,128.46,128.38,26.43854886]
[1740727630835,7.784,128.47,128.39,0.14216157]
[1740727631045,7.7834,128.48,128.4,25.01504886]
[1740727631501,7.7821,128.5,128.4,243.11504886]
[1740727631701,7.7821,128.5,128.41,9.5]
[1740727632729,7.7821,128.5,128.42,7.7869]
[1740727632915,7.7821,128.5,128.43,18.64964886]
[1740727633111,7.7809,128.52,128.44,0.14216157]
[1740727633313,7.7804,128.53,128.45,18.64964886]
[1740727633520,7.7804,128.53,128.46,9.5]
[1740727633828,7.7804,128.53,128.42,27.2542]
[1740727633829,20.0,128.49,128.42,227.6]
[1740727634026,0.14216157,128.5,128.42,91.1]
[1740727634224,82.8,128.51,128.42,91.1]
[1740727634530,7.7821,128.5,128.43,7.7863]
[1740727634919,90.5816,128.51,128.43,26.43594886]
[1740727635109,7.7802,128.53,128.44,18.64964886]
[1740727635314,7.7802,128.53,128.44,218.1]
[1740727635519,101.44964886,128.52,128.42,91.1]
[1740727635726,20.0,128.49,128.42,91.1]
[1740727636223,82.8,128.5,128.42,98.8868]
[1740727636426,82.8,128.5,128.42,91.1]
[1740727636626,27.38156157,128.49,128.42,81.6]
[1740727636823,0.14216157,128.47,128.38,227.6]
[1740727637053,82.94216157,128.47,128.38,91.1]
[1740727637253,82.94216157,128.47,128.44,0.03]
[1740727637618,20.0,128.45,128.44,0.03]
[1740727638652,27.7851,128.45,128.38,81.6]
[1740727638861,0.14216157,128.44,128.37,0.03]
[1740727639175,82.8,128.43,128.37,0.03]
[1740727639453,82.8,128.42,128.37,0.03]
[1740727639762,89.50156157,128.41,128.37,0.03]
[1740727639937,20.0,128.38,128.37,0.03]
[1740727640629,27.7893,128.38,128.37,0.03]
[1740727640821,7.7888,128.39,128.37,0.03]
[1740727641253,82.8,128.4,128.37,0.03]
[1740727641851,25.77641054,128.43,128.37,81.63]
[1740727641852,7.7863,128.43,128.37,81.63]
[1740727642055,7.7859,128.44,128.37,218.13]
[1740727642257,14.11232621,128.44,128.37,218.13]
[1740727642422,27.2502,128.44,128.37,218.13]
[1740727642738,19.4643,128.44,128.37,218.13]
[1740727644038,102.2643,128.44,128.37,0.03]
[1740727644925,110.05,128.44,128.37,0.03]
[1740727645552,82.8,128.43,128.37,0.03]
[1740727645851,82.8,128.42,128.37,0.03]
[1740727646933,7.7875,128.41,128.37,0.03]
[1740727647131,7.7857,128.44,128.37,81.63]
[1740727647551,27.25,128.44,128.37,81.63]
[1740727647850,20.0,128.4,128.37,0.03]
[1740727648943,7.7887,128.39,128.37,0.03]
[1740727650144,7.7887,128.39,128.37,0.0001]
[1740727650853,20.0,128.38,128.37,0.0001]
[1740727652353,0.14216157,128.38,128.37,0.0001]
[1740727652650,38.79181043,128.38,128.37,0.0001]
[1740727652863,46.58111043,128.38,128.37,0.0001]
[1740727653056,0.14216157,128.37,128.32,0.0001]
[1740727653347,20.0,128.33,128.32,0.0001]
[1740727653550,66.2095,128.38,128.32,0.0001]
[1740727654062,7.7893,128.38,128.32,0.0001]
[1740727654227,7.7889,128.39,128.32,0.0001]
[1740727654425,17.2882,128.4,128.32,220.5067]
[1740727654636,11.70348701,128.43,128.33,28.14964886]
[1740727654841,11.70348701,128.43,128.35,18.64964886]
[1740727655048,6.1312,128.41,128.32,0.0001]
[1740727655249,6.1312,128.35,128.22,220.1]
[1740727655452,3.82507389,128.36,128.26,2.0]
[1740727655749,9.5,128.4,128.28,22.64964886]
[1740727656047,0.14216157,128.41,128.3,18.64964886]
[1740727656439,20.0,128.39,128.3,18.64964886]
[1740727656952,27.2627,128.38,128.3,81.6]
[1740727657153,20.0,128.35,128.3,81.6]
[1740727657447,20.0,128.35,128.29,11.9242]
[1740727658145,82.8,128.37,128.29,11.9242]
[1740727658551,7.7893,128.38,128.3,18.64964886]
[1740727658745,7.7893,128.38,128.3,236.74964886]
[1740727658950,7.7893,128.38,128.3,218.1]
[1740727659450,27.2627,128.38,128.3,218.1]
[1740727659838,110.0627,128.38,128.3,81.6]
[1740727660861,20.0,128.35,128.3,81.6]
[1740727661048,27.7916,128.35,128.3,81.6]
[1740727661370,22.7916,128.35,128.3,81.6]
[1740727661538,7.7916,128.35,128.3,81.6]
[1740727661857,7.7899,128.37,128.31,18.64964886]
[1740727662052,102.2699,128.41,128.31,100.24964886]
[1740727662267,102.2699,128.41,128.32,0.14216157]
[1740727662638,7.7881,128.4,128.34,18.64964886]
[1740727662862,7.7881,128.4,128.34,236.74964886]
[1740727663153,7.7875,128.41,128.35,0.14216157]
[1740727663459,0.063,128.39,128.37,18.64964886]
[1740727663666,0.063,128.39,128.37,236.74964886]
[1740727663960,7.7845,128.46,128.38,1.77722814]
[1740727664143,7.7845,128.46,128.39,18.64964886]
[1740727664334,7.7845,128.46,128.39,28.14964886]
[1740727664533,7.7845,128.46,128.39,9.5]
[1740727664760,7.7845,128.46,128.38,81.6]
[1740727665054,20.0,128.43,128.38,81.6]
[1740727665260,7.7869,128.42,128.38,81.6]
[1740727665950,7.7869,128.42,128.36,138.9384]
[1740727665951,27.2542,128.42,128.36,2.4384]
[1740727666157,27.2542,128.42,128.35,91.08]
[1740727666966,7.7869,128.42,128.36,18.64964886]
[1740727667262,19.4634,128.45,128.36,26.44014886]
[1740727667434,19.4634,128.45,128.36,244.54014886]
[1740727668048,19.4634,128.45,128.36,236.74964886]
[1740727669774,19.4634,128.45,128.36,244.54004886]
[1740727670066,19.4634,128.45,128.37,0.14216157]
[1740727670260,19.4634,128.45,128.36,244.54004886]
[1740727670849,19.4634,128.45,128.36,246.54004886]
[1740727671165,19.4634,128.45,128.36,244.54004886]
[1740727671344,19.4634,128.45,128.36,236.74964886]
[1740727671948,20.0,128.42,128.36,81.6]
[1740727672148,102.8,128.41,128.33,81.6]
[1740727672370,82.8,128.4,128.33,81.6]
[1740727673257,82.8,128.39,128.32,81.6]
[1740727673474,27.2627,128.38,128.32,81.6]
[1740727676163,27.2627,128.38,128.33,0.03]
[1740727676968,7.7893,128.38,128.33,0.03]
[1740727678883,27.2627,128.38,128.33,0.03]
[1740727679191,7.7893,128.38,128.33,0.03]
[1740727679385,7.7893,128.38,128.33,81.63]
[1740727680075,3.91950761,128.4,128.33,81.63]
[1740727680286,27.2606,128.39,128.33,81.63]
[1740727682786,20.0,128.35,128.33,0.03]
[1740727682977,20.0,128.34,128.3,0.03]
[1740727683280,6.0079,128.33,128.3,0.03]
[1740727683973,6.6031,128.36,128.3,0.03]
[1740727684200,7.7911,128.35,128.3,89.4241]
[1740727684365,7.7908,128.36,128.31,18.64964886]
[1740727684565,7.7908,128.36,128.31,236.74964886]
[1740727685983,7.7893,128.38,128.31,246.22964886]
[1740727686571,7.7893,128.38,128.31,254.02314886]
[1740727686772,27.2627,128.38,128.31,246.22964886]
[1740727687372,27.2627,128.38,128.31,254.02304886]
[1740727687678,7.7893,128.38,128.31,254.02304886]
[1740727687881,0.063,128.42,128.34,23.42]
[1740727688081,0.063,128.42,128.35,18.64964886]
[1740727688488,7.8499,128.42,128.35,18.64964886]
[1740727688677,7.8499,128.42,128.35,244.54064886]
[1740727688878,7.8499,128.42,128.37,18.64964886]
[1740727689081,7.8499,128.42,128.37,236.74964886]
[1740727690185,27.3172,128.42,128.37,218.1]
[1740727690392,19.5303,128.42,128.37,218.1]
[1740727691476,19.5303,128.42,128.36,91.08]
[1740727691887,82.8,128.41,128.33,218.13]
[1740727692191,20.0,128.37,128.33,0.03]
[1740727692487,27.2669,128.36,128.33,0.03]
[1740727693189,7.7905,128.36,128.33,0.03]
[1740727695702,90.5901,128.37,128.33,0.03]
[1740727696200,7.7875,128.41,128.34,18.64964886]
[1740727696377,7.7875,128.41,128.34,236.74964886]
[1740727696582,27.2563,128.41,128.34,81.6]
[1740727698408,7.7875,128.41,128.35,18.64964886]
[1740727698898,0.063,128.42,128.35,26.44034886]
[1740727700087,0.063,128.42,128.36,0.14216157]
[1740727700277,0.063,128.42,128.38,18.64964886]
[1740727700478,0.063,128.42,128.39,0.14216157]
[1740727700882,0.063,128.42,128.39,7.93036157]
[1740727701199,0.063,128.42,128.41,27.27061043]
[1740727701385,0.063,128.42,128.41,249.37061043]
[1740727701774,0.0001,128.42,128.41,249.37061043]
[1740727701990,17.40653681,128.46,128.43,0.14216157]
[1740727702195,17.40653681,128.46,128.45,0.14216157]
[1740727702493,11.70348701,128.48,128.46,18.64964886]
[1740727702695,17.40653681,128.52,128.46,236.74964886]
[1740727702893,25.18753681,128.52,128.46,244.53394886]
[1740727703199,25.18753681,128.52,128.46,236.74964886]
[1740727704104,25.18753681,128.52,128.46,218.1]
[1740727704289,44.63973681,128.52,128.46,218.1]
[1740727704597,7.781,128.52,128.46,218.1]
[1740727704806,0.063,128.53,128.47,18.64964886]
[1740727705506,0.063,128.53,128.46,218.1]
[1740727706115,20.0,128.51,128.43,91.06]
[1740727706282,20.0,128.51,128.43,227.56]
[1740727706606,82.863,128.53,128.44,18.64964886]
[1740727706808,27.233,128.52,128.44,236.74964886]
[1740727707302,27.233,128.52,128.44,81.6]
[1740727707487,27.233,128.52,128.42,136.5]
[1740727707488,20.0,128.48,128.42,218.1]
[1740727707687,20.0,128.48,128.42,81.6]
[1740727708603,7.7839,128.47,128.42,81.6]
[1740727710933,7.6839,128.47,128.42,81.6]
[1740727711413,7.6839,128.47,128.42,218.1]
[1740727713532,7.7821,128.5,128.43,18.64964886]
[1740727713739,7.7817,128.51,128.43,240.38400987]
[1740727713931,7.7811,128.52,128.44,0.14216157]
[1740727714116,7.8432,128.53,128.46,18.64964886]
[1740727714323,11.70861695,128.53,128.46,236.74964886]
[1740727715038,7.8432,128.53,128.46,236.74964886]
[1740727715619,0.063,128.47,128.46,236.89181043]
[1740727716007,0.063,128.47,128.46,244.67631043]
[1740727716616,0.063,128.47,128.46,236.74964886]
[1740727716818,0.063,128.47,128.46,81.6]
[1740727717627,0.063,128.47,128.44,218.1]
[1740727719015,0.063,128.47,128.45,18.64964886]
[1740727719415,0.063,128.47,128.44,218.1]
[1740727719618,20.0,128.49,128.44,218.1]
[1740727720219,20.0,128.48,128.44,81.6]